Cogmind - Beta 13 @@@ ROGUE MODE // 2024.04.14 @ 02:56:45 Player: Leaves Result: Self-destructed Performance ------------- Evolutions (1) 500 Regions Visited (3) 600 Robots Destroyed (8) 40 Value Destroyed (235) 235 Prototype IDs (0) 0 Alien Tech Used (0) 0 Bonus (0) 0 TOTAL SCORE: 1375 Bonus ------- None Cogmind --------- Core Integrity 249/400 Matter 278/300 Energy 73/125 System Corruption 0% Temperature Cool (82) Movement Walking (190) Ox1 Location -9/Storage Parts ------- > --- POWER (1) -------- Light Ion Engine > --- PROPULSION (3) --- Light Treads Aluminum Leg > --- UTILITY (3) ------ Small Storage Unit > --- WEAPON (2) ------- Particle Cannon Light Assault Rifle > --- INVENTORY (8) ---- Ion Engine Light Treads Wheel Small Laser Peak State ------------ > --- POWER ------------ Ion Engine > --- PROPULSION ------- Aluminum Leg Aluminum Leg Aluminum Leg > --- UTILITY ---------- Heat Sink Small Storage Unit > --- WEAPON ----------- Small Laser Particle Cannon > --- INVENTORY -------- Ion Engine Light Ion Engine Light Treads Light Treads Aluminum Leg Wheel Small Laser Light Assault Rifle [Rating: 9] Favorites ----------- Power Ion Engine Engine Ion Engine Propulsion Aluminum Leg Treads Light Treads Leg Aluminum Leg Utility Small Storage Unit Device Heat Sink Storage Small Storage Unit Weapon Small Laser Energy Gun Small Laser Energy Cannon Particle Cannon Ballistic Gun Light Assault Rifle Build | -11 -10 -9 -9 ------- Run | Yrd Mat Mat Sto Slots Evolved 2 | . . 2 . Power . | . . . . Propulsion 1 | . . 1 . Utility 1 | . . 1 . Weapon . | . . . . Parts Attached 14 | 6 1 1 6 Power 2 | 1 . . 1 Engine 2 | 1 . . 1 Core . | . . . . Reactor . | . . . . Propulsion 5 | 2 . 1 2 Treads 1 | . . . 1 Leg 4 | 2 . 1 1 Wheel . | . . . . Hover . | . . . . Flight . | . . . . Utility 3 | 1 1 . 1 Device 2 | . 1 . 1 Storage 1 | 1 . . . Processor . | . . . . Hackware . | . . . . Protection . | . . . . Artifact . | . . . . Weapon 4 | 2 . . 2 Energy Gun 1 | 1 . . . Energy Cannon 1 | . . . 1 Ballistic Gun 2 | 1 . . 1 Ballistic Cannon . | . . . . Launcher . | . . . . Special Weapon . | . . . . Impact Weapon . | . . . . Slashing Weapon . | . . . . Piercing Weapon . | . . . . Special Melee Weapon . | . . . . Unidentified Prototypes . | . . . . Parts Lost 7 | . . . 7 Power 1 | . . . 1 Propulsion 3 | . . . 3 Utility 2 | . . . 2 Weapon 1 | . . . 1 Highest Loss Streak 6 | . . . 6 To Critical Strikes . | . . . . Average Slot Usage (%) 84 | . 88 88 78 Engine 11 | . 14 11 9 Leg 29 | . 28 33 26 Device 7 | . 2 11 7 Storage 12 | . 14 11 11 Energy Gun 11 | . 14 11 8 Energy Cannon 2 | . . . 6 Ballistic Gun 10 | . 14 11 4 Naked Turns . | . . . . Heaviest Build 16 | 12 13 13 16 Greatest Support 30 | 20 20 30 30 Greatest Overweight (x) 3 | 3 . . 1 Average Overweight (x) . | 1 . . . Largest Inventory Capacity 8 | 8 8 8 8 Average Capacity 7 | 7 8 8 8 Most Carried 8 | 8 8 8 8 Average Carried 6 | 5 6 7 7 Final Capacity 8 | 8 8 8 8 Final Carried 8 | 6 8 8 4 Class Distribution -------------------- 100% | Mutant Dominant Class ---------------- Mutant | -10/Materials Mutant | -9/Materials Mutant | -9/Storage Resources | -11 -10 -9 -9 ----------- Run | Yrd Mat Mat Sto Matter Collected 306 | 141 72 . 93 Remotely . | . . . . Salvage Created 268 | . 72 . 196 Parts 18 | . 4 . 14 Haulers Intercepted . | . . . . Recyclers Shooed . | . . . . Parts Field Recycled . | . . . . Retrieved Matter . | . . . . Parts Self-Destructed . | . . . . Prevented . | . . . . Kills | -11 -10 -9 -9 ------- Run | Yrd Mat Mat Sto Combat Hostiles Destroyed 8 | . 2 . 6 Guns 6 | . 2 . 4 Cannons 2 | . . . 2 Classes Destroyed 3 | . 1 . 2 Swarmer 2 | . . . 2 Grunt 5 | . 2 . 3 Sentry 1 | . . . 1 Best Kill Streak 6 | . 2 . 6 Combat Bots Only 6 | . 2 . 6 Max Kills in Single Turn 1 | . 1 . 1 Gunslinging . | . . . . Exploded . | . . . . Melee . | . . . . Uniques/NPCs Destroyed . | . . . . Combat | -11 -10 -9 -9 -------- Run | Yrd Mat Mat Sto Hostile Shots Fired 132 | . 10 . 122 Missed 40 | . 2 . 38 Damage Taken 914 | . 90 . 824 Core 173 | . 22 . 151 Absorbed by Shields . | . . . . Core Remaining (%) 95 | 100 91 . . Volleys Fired 40 | . 9 1 30 Largest 2 | . 2 2 2 Hottest 108 | . 60 60 108 Shots Fired 72 | . 18 2 52 Gun 51 | . 18 2 31 Cannon 21 | . . . 21 Launcher . | . . . . Special . | . . . . Kinetic 21 | . 9 1 11 Thermal 51 | . 9 1 41 Explosive . | . . . . Electromagnetic . | . . . . Robot Hit Streak 20 | . 6 1 20 Robot Miss Streak 6 | . 3 1 6 Penetration Max . | . . . . Secondary Targets . | . . . . Shots Hit Robots 43 | . 12 1 30 Core Hits 17 | . 5 1 11 Critical Kills . | . . . . Critical Parts Destroyed . | . . . . Critical Strikes . | . . . . Melee Attacks . | . . . . Impact . | . . . . Slashing . | . . . . Piercing . | . . . . Sneak Attacks . | . . . . Combat Hostiles . | . . . . Follow-up Attacks . | . . . . Damage Inflicted 603 | . 127 9 467 Guns 325 | . 126 9 190 Cannons 261 | . . . 261 Explosions . | . . . . Melee . | . . . . Ramming 17 | . 1 . 16 Kinetic 106 | . 67 9 30 Thermal 480 | . 59 . 421 Explosive . | . . . . Electromagnetic . | . . . . Impact . | . . . . Slashing . | . . . . Piercing . | . . . . Highest Corruption . | . . . . Average Corruption . | . . . . Corruption Purged . | . . . . Corruption Blocked . | . . . . Overload Shots . | . . . . Overflow Damage 2 | . . . 2 Projectiles 2 | . . . 2 Explosions . | . . . . Melee . | . . . . Knockbacks . | . . . . Impact . | . . . . Kinetic . | . . . . Secondary . | . . . . Self-Inflicted Damage . | . . . . Shots . | . . . . Rammed . | . . . . Targets Rammed 5 | . 1 . 4 Kicked 5 | . 1 . 4 Crushed . | . . . . Highest Temperature 293 | . 108 . 293 Average Temperature 100 | . 48 . 120 Received Heat Transfer 264 | . 48 . 216 Siege Activations . | . . . . Robots Corrupted . | . . . . Combat Hostiles . | . . . . Parts Fried . | . . . . Impact Corruptions . | . . . . Robots Melted . | . . . . Combat Hostiles . | . . . . Parts Melted 1 | . 1 . . Heat Transferred 919 | . 125 . 794 Parts Sabotaged . | . . . . Parts Stolen . | . . . . Parts Stripped . | . . . . Power Chain Reactions . | . . . . Alert | -11 -10 -9 -9 ------- Run | Yrd Mat Mat Sto Peak Influence 174 | . 74 46 174 Initial 31 | . . 31 18 Average 42 | . 28 38 101 Maximum Alert Level . | . . . . Low Security (%) 100 | 100 100 100 100 Level 1 . | . . . . Level 2 . | . . . . Level 3 . | . . . . Level 4 . | . . . . Level 5 . | . . . . High Security . | . . . . Max Security . | . . . . Squads Dispatched 5 | . 1 . 4 Investigation 1 | . . . 1 Extermination . | . . . . Reinforcement 3 | . 1 . 2 Assault . | . . . . Garrison 1 | . . . 1 Intercept . | . . . . Searches Triggered . | . . . . Construction Impeded . | . . . . Haulers Reinforced . | . . . . Active Scanning Responses . | . . . . Cargo Convoy Interrupts . | . . . . Stealth | -11 -10 -9 -9 --------- Run | Yrd Mat Mat Sto Distress Signals . | . . . . Communications Jammed . | . . . . Distress Signals . | . . . . Times Spotted 21 | . 4 1 16 Peak Tracking Total 8 | . 2 1 8 Tactical Retreats 1 | . . . 1 Traps | -11 -10 -9 -9 ------- Run | Yrd Mat Mat Sto Traps Triggered 1 | . . . 1 Indirectly . | . . . . Trap Hack Attempts . | . . . . Triggered . | . . . . Disarmed . | . . . . Reprogrammed . | . . . . Reused . | . . . . Traps Extracted . | . . . . Installed . | . . . . Triggered . | . . . . Machines | -11 -10 -9 -9 ---------- Run | Yrd Mat Mat Sto Machines Disabled . | . . . . Max in Single Turn . | . . . . Machines Repaired . | . . . . Machines Dismantled . | . . . . Machines Sabotaged . | . . . . Overloaded Fab Kills . | . . . . Hacking | -11 -10 -9 -9 --------- Run | Yrd Mat Mat Sto Machines Accessed 3 | . 2 1 . Terminals 3 | . 2 1 . Fabricators . | . . . . Repair Stations . | . . . . Recycling Units . | . . . . Scanalyzers . | . . . . Garrison Access . | . . . . Total Hacks 8 | . 7 1 . Successful 4 | . 4 . . Failed 3 | . 2 1 . Catastrophic 2 | . 1 1 . Database Lockouts 1 | . 1 . . Manual 7 | . 6 1 . Terminals 8 | . 7 1 . Fabricators . | . . . . Repair Stations . | . . . . Recycling Units . | . . . . Scanalyzers . | . . . . Garrison Access . | . . . . Terminal Hacks 4 | . 4 . . Record 3 | . 3 . . Robot Analysis 1 | . 1 . . Fabricator Hacks . | . . . . Repair Station Hacks . | . . . . Recycling Unit Hacks . | . . . . Scanalyzer . | . . . . Garrison Access Hacks . | . . . . Unauthorized Hacks . | . . . . Terminals . | . . . . Fabricators . | . . . . Repair Stations . | . . . . Recycling Units . | . . . . Scanalyzers . | . . . . Garrison Access . | . . . . Data Cores Recovered . | . . . . Used . | . . . . Hacking Detections 2 | . 1 1 . Full Trace Events . | . . . . Feedback Events . | . . . . Feedback Blocked . | . . . . Robot Schematics Acquired . | . . . . Robots Built . | . . . . Authchips . | . . . . Time . | . . . . Total Robot Build Rating . | . . . . Part Schematics Acquired . | . . . . Parts Built . | . . . . Authchips . | . . . . Time . | . . . . Total Part Build Rating . | . . . . Parts Repaired . | . . . . Time . | . . . . Parts Recycled . | . . . . Recycled Matter . | . . . . Retrieved Matter . | . . . . Retrieved Components . | . . . . Parts Scanalyzed . | . . . . Part Schematics Acquired . | . . . . Parts Damaged . | . . . . Bothacking | -11 -10 -9 -9 ------------ Run | Yrd Mat Mat Sto Used RIF Installer . | . . . . Robots Hacked . | . . . . Non-combat . | . . . . Combat . | . . . . Robot Hacks Applied . | . . . . Relay Couplers Released . | . . . . Fabnet Peak Effective % . | . . . . Robots Rewired . | . . . . Allies Hacked . | . . . . Hacks Repelled . | . . . . Allies | -11 -10 -9 -9 -------- Run | Yrd Mat Mat Sto Total Allies . | . . . . Largest Group . | . . . . Highest-Rated Group . | . . . . Highest-Rated Ally . | . . . . Total Orders . | . . . . Ally Attacks . | . . . . Total Damage . | . . . . Kills . | . . . . Allies Corrupted . | . . . . Allies Melted . | . . . . Intel | -11 -10 -9 -9 ------- Run | Yrd Mat Mat Sto Robot Analysis Total 1 | . 1 . . Derelict Logs Recovered . | . . . . Drone Launches . | . . . . Drone Recoveries . | . . . . Exploration | -11 -10 -9 -9 ------------- Run | Yrd Mat Mat Sto Turns Passed 742 | 175 196 191 180 Spaces Moved 453 | 109 120 155 69 Core 58 | 58 . . . Treads . | . . . . Legs 395 | 51 120 155 69 Wheels . | . . . . Hover . | . . . . Flight . | . . . . Fastest Speed 50 | 50 120 120 120 Average Speed 127 | 146 120 120 125 Slowest Speed 200 | 200 120 120 190 Overloaded Moves . | . . . . Propulsion Burnouts . | . . . . Robots Hopped . | . . . . Cave-ins Triggered . | . . . . Exploration Rate (%) 13 | 7 18 9 20 Regions Visited 3 Branch Regions 1 Pre-discovered Areas . | . . . . Known Exits Taken . | . . . . Unknown Exits Taken 3 | 1 1 1 . Scrap Searched . | . . . . Spaces Dug . | . . . . Terrain Destroyed . | . . . . Melee . | . . . . Projectile . | . . . . AOE . | . . . . Terrain Rammed . | . . . . Walls Destroyed . | . . . . Machines Disabled . | . . . . Actions | -11 -10 -9 -9 --------- Run | Yrd Mat Mat Sto Total 545 | 122 155 158 110 Wait 23 | . 21 1 1 Move 450 | 108 119 154 69 Hop . | . . . . Pick Up 12 | 8 3 1 . Fast Attach 6 | 4 1 . 1 Attach 7 | 2 . 1 4 Detach . | . . . . Swap 1 | . . . 1 Drop 1 | . 1 . . Fire 40 | . 9 1 30 Melee . | . . . . Ram . | . . . . Kick 5 | . 1 . 4 Crush . | . . . . Escape Stasis . | . . . . Rewire . | . . . . Trap . | . . . . Miscellaneous . | . . . . Route ------- -11/Scrapyard -10/Materials -9/Materials -9/Storage History --------- Turn | Location | Event 4 | -11/Scrapyard | Discovered new exit (range 16) 176 | -11/Scrapyard | Entered Materials 252 | -10/Materials | Central database locked down 292 | -10/Materials | Discovered new exit (range 8) 310 | -10/Materials | Build established: Mutant 372 | -10/Materials | Entered another Materials area 372 | -9/Materials | Evolved 2 slots: Propulsion x1, Utility x1 377 | -9/Materials | Discovered new exit (range 11) 563 | -9/Materials | Entered Storage 665 | -9/Storage | Garrison activated, responded to threat 743 | -9/Storage | Self-destructed Last Messages --------------- 00687_ An alarm sounds. 00687_ ALERT: Alarm triggered, dispatching investigation squad. 00687_ U-05 Engineer lays Concrete. 00689_ R-06 Scavenger collects Heat Sink. 00690_ U-05 Engineer lays Concrete. 00691_ Aluminum Leg destroyed. 00692_ U-05 Engineer lays Concrete. 00693_ R-06 Scavenger collects Aluminum Leg. 00695_ U-05 Engineer lays Concrete. 00695_ Kicked O-16 Technician. 00697_ R-06 Scavenger collects Sml. Laser. 00698_ G-34 Mercenary heat damages Aluminum Leg. 00700_ Aluminum Leg destroyed. 00701_ Sml. Laser destroyed. 00701_ R-06 Scavenger collects Heat Sink. 00704_ Ion Engine destroyed. 00718_ Heat Sink destroyed. 00731_ Destroyed Flight Unit. Map ----- +----------------------------------------------------+ | | | | | | | | | | | ???????????????????????????###???????????????????? | | ????????????????????????##"""#???????????????????? | | ?????????????????????###T#"T"###?????????????????? | | ?????????????????????# #?????????????????? | | ???????????????####### [#?????????????????? | | ################ ==# #?????????????????? | | **#% ! #?????????????????? | | % %/* #?????????????????? | | %=#[""" """ #?????????????????? | | #+############## [#=""" """ #?????????????????? | | #???????## ## """ """ ??????????????????? | | """ #????????# ###########??????????????????? | | """ #????##??# # #???????????????????? | | """ "" ?## # # """"" #???????????????????? | | """ G"##T + # """"" #???????????????????? | | "" ###"### # """"" #???????????????????? | | ####?????# # #???????????????????? | | #????????# o # #???????????????????? | | ########????????# gs !! #???????????????????? | | ????????????????#% # s ! #???????????????????? | | ???????????????## ## s @ #???????????????????? | | ?????# # ######s####+###??????????????? | | ?????# / ???????? | | ?????" = # ???????? | | ????"T ?# ##########+### ???????? | | ????"" ??######?????????? ?????? ????????? | | ?????# """ ????????????????????? #???????????????? | | ????????""???????????????????????#???????????????? | | ????????"????????????????????????????????????????? | | ?????????????????????????????????????????????????? | | ?????????????????????????????????????????????????? | | ?????????????????????????????????????????????????? | | ?????????????????????????????????????????????????? | | ?????????????????????????????????????????????????? | | ?????????????????????????????????????????????????? | | ?????????????????????????????????????????????????? | | ?????????????????????????????????????????????????? | | ?????????????????????????????????????????????????? | | ?????????????????????????????????????????????????? | | ?????????????????????????????????????????????????? | | ?????????????????????????????????????????????????? | | ?????????????????????????????????????????????????? | | ?????????????????????????????????????????????????? | | ?????????????????????????????????????????????????? | | ?????????????????????????????????????????????????? | +----------------------------------------------------+ Best States ------------- Heat Dissipation 38 Energy Generation 10 Energy Capacity 250 Matter Stores 300 Matter Capacity 300 Sight Range 16 Terrain Scan Density 10 Evasion (%) 55 Recoil Reduction 1 Item Schematics ----------------- None Robot Schematics ------------------ None Fabricated ------------ Nothing Alien Tech Used ----------------- None Achievements -------------- None Challenges ------------ None Game ------ Seed TachyonMiningMatrix Manual? 0 Play Time 00:14:07 Cumulative 6.0 hours Start 2024.04.14 @ 02:40:53 End 2024.04.14 @ 02:56:45 Sessions 1 Manual Loads 0 Difficulty Rogue Special Mode None Game No. 4 Rogue 4 Adventurer 0 Explorer 0 Win Type - Total 0 Types 0/0/0/0/0/0/0/0/0 Lore% 5 Gallery% 9 Achievement% 10 Wizard Run 0 Options --------- Layout 1 ASCII 0 Keyboard 1 Movement Arrows Keybinds 0 Fullscreen 2 Font 24/Smallcaps Map View 50x35 Zoom Use 0% Tactical HUD 1 Map Filters NONE Filters NONE Steam 0 RUN: 11075715-248a-44cf-95db-855af3dd5f0b